{"text_format":"1","workbook":"xlsx","n_sheets":2,"sheets":["Sheet1","Sheet2"],"not_rendered":{"charts":0,"images":0,"macros":1,"external_links":0,"defined_names":0,"comments":0,"pivot_tables":0},"unopened":[],"bounds":{"document_bytes":16777216,"sheet_cells":100000,"rows_first":2000,"rows_last":500,"rows_between":2000,"halvings":0,"cell_chars":16384,"cell_head_chars":4096},"cells_cut":0,"cells_raw":0,"read":"whole","date_system":"1900"}

{"sheet":"Sheet1","index":0,"n_rows":1042,"n_cols":10,"rows_kept":1042,"cut":false,"hidden":false,"merged":[]}
[null,null,null,null,null,null,null,null,null,{"$f":"TODAY()","v":"2019-05-13"}]
[]
[]
[]
["م","الاسم ","الرقم","تاريخ التعيين","يوم","عدد الايام المتبقيه "]
[1,"محمود",20,"2019-04-30",{"$f":"IF(D6>0,D6,\"\")","v":"2019-04-30"},{"$f":"IF(D6>0,$J$1-D6,\"\")","v":13}]
[2,"احمد",50,"2019-04-20",{"$f":"IF(D7>0,D7,\"\")","v":"2019-04-20"},{"$f":"IF(D7>0,$J$1-D7,\"\")","v":23}]
[3,"محمد",5656,"2019-01-20","2019-01-20",113]
[4,"اسلام",6454,"2019-02-20","2019-02-20",82]
[5,"احمد",564,"2019-04-05","2019-04-05",38]
[6,null,null,null,"",""]
[7,"باسم",null,"2019-01-25","2019-01-25",108]
[null,null,null,null,"",""]
[null,null,null,null,"",""]
[null,null,null,null,"",""]
[null,null,null,null,"",""]
[null,null,null,null,"",""]
[null,null,null,null,"",""]
[null,null,null,null,"",""]
[null,null,null,null,"",""]
[null,null,null,null,"",""]
[null,null,null,null,"",""]
[null,null,null,null,"",""]
[null,null,null,null,"",""]
[null,null,null,null,"",""]
[null,null,null,null,"",""]
[null,null,null,null,"",""]
[null,null,null,null,"",""]
[null,null,null,null,"",""]
[null,null,null,null,"",""]
[null,null,null,null,"",""]
[null,null,null,null,"",""]
[null,null,null,null,"",""]
[null,null,null,null,"",""]
[null,null,null,null,"",""]
[null,null,null,null,"",""]
[null,null,null,null,"",""]
[null,null,null,null,"",""]
[null,null,null,null,"",""]
[null,null,null,null,"",""]
[null,null,null,null,"",""]
[null,null,null,null,"",""]
[null,null,null,null,"",""]
[null,null,null,null,"",""]
[null,null,null,null,"",""]
[null,null,null,null,"",""]
[null,null,null,null,"",""]
[null,null,null,null,"",""]
[null,null,null,null,"",""]
[null,null,null,null,"",""]
[null,null,null,null,"",""]
[null,null,null,null,"",""]
[null,null,null,null,"",""]
[null,null,null,null,"",""]
[null,null,null,null,"",""]
[null,null,null,null,"",""]
[null,null,null,null,"",""]
[null,null,null,null,"",""]
[null,null,null,null,"",""]
[null,null,null,null,"",""]
[null,null,null,null,"",""]
[null,null,null,null,"",""]
[null,null,null,null,"",""]
[null,null,null,null,"",""]
[null,null,null,null,"",""]
[null,null,null,null,"",""]
[null,null,null,null,"",""]
[null,null,null,null,"",""]
[null,null,null,null,"",""]
[null,null,null,null,"",""]
[null,null,null,null,{"$f":"IF(D71>0,D71,\"\")","v":""},{"$f":"IF(D71>0,$J$1-D71,\"\")","v":""}]
[null,null,null,null,"",""]
[null,null,null,null,"",""]
[null,null,null,null,"",""]
[null,null,null,null,"",""]
[null,null,null,null,"",""]
[null,null,null,null,"",""]
[null,null,null,null,"",""]
[null,null,null,null,"",""]
[null,null,null,null,"",""]
[null,null,null,null,"",""]
[null,null,null,null,"",""]
[null,null,null,null,"",""]
[null,null,null,null,"",""]
[null,null,null,null,"",""]
[null,null,null,null,"",""]
[null,null,null,null,"",""]
[null,null,null,null,"",""]
[null,null,null,null,"",""]
[null,null,null,null,"",""]
[null,null,null,null,"",""]
[null,null,null,null,"",""]
[null,null,null,null,"",""]
[null,null,null,null,"",""]
[null,null,null,null,"",""]
[null,null,null,null,"",""]
[null,null,null,null,"",""]
[null,null,null,null,"",""]
[null,null,null,null,"",""]
[null,null,null,null,"",""]
[null,null,null,null,"",""]
[null,null,null,null,"",""]
[null,null,null,null,"",""]
[null,null,null,null,"",""]
[null,null,null,null,"",""]
[null,null,null,null,"",""]
[null,null,null,null,"",""]
[null,null,null,null,"",""]
[null,null,null,null,"",""]
[null,null,null,null,"",""]
[null,null,null,null,"",""]
[null,null,null,null,"",""]
[null,null,null,null,"",""]
[null,null,null,null,"",""]
[null,null,null,null,"",""]
[null,null,null,null,"",""]
[null,null,null,null,"",""]
[null,null,null,null,"",""]
[null,null,null,null,"",""]
[null,null,null,null,"",""]
[null,null,null,null,"",""]
[null,null,null,null,"",""]
[null,null,null,null,"",""]
[null,null,null,null,"",""]
[null,null,null,null,"",""]
[null,null,null,null,"",""]
[null,null,null,null,"",""]
[null,null,null,null,"",""]
[null,null,null,null,"",""]
[null,null,null,null,"",""]
[null,null,null,null,"",""]
[null,null,null,null,"",""]
[null,null,null,null,"",""]
[null,null,null,null,"",""]
[null,null,null,null,{"$f":"IF(D135>0,D135,\"\")","v":""},{"$f":"IF(D135>0,$J$1-D135,\"\")","v":""}]
[null,null,null,null,"",""]
[null,null,null,null,"",""]
[null,null,null,null,"",""]
[null,null,null,null,"",""]
[null,null,null,null,"",""]
[null,null,null,null,"",""]
[null,null,null,null,"",""]
[null,null,null,null,"",""]
[null,null,null,null,"",""]
[null,null,null,null,"",""]
[null,null,null,null,"",""]
[null,null,null,null,"",""]
[null,null,null,null,"",""]
[null,null,null,null,"",""]
[null,null,null,null,"",""]
[null,null,null,null,"",""]
[null,null,null,null,"",""]
[null,null,null,null,"",""]
[null,null,null,null,"",""]
[null,null,null,null,"",""]
[null,null,null,null,"",""]
[null,null,null,null,"",""]
[null,null,null,null,"",""]
[null,null,null,null,"",""]
[null,null,null,null,"",""]
[null,null,null,null,"",""]
[null,null,null,null,"",""]
[null,null,null,null,"",""]
[null,null,null,null,"",""]
[null,null,null,null,"",""]
[null,null,null,null,"",""]
[null,null,null,null,"",""]
[null,null,null,null,"",""]
[null,null,null,null,"",""]
[null,null,null,null,"",""]
[null,null,null,null,"",""]
[null,null,null,null,"",""]
[null,null,null,null,"",""]
[null,null,null,null,"",""]
[null,null,null,null,"",""]
[null,null,null,null,"",""]
[null,null,null,null,"",""]
[null,null,null,null,"",""]
[null,null,null,null,"",""]
[null,null,null,null,"",""]
[null,null,null,null,"",""]
[null,null,null,null,"",""]
[null,null,null,null,"",""]
[null,null,null,null,"",""]
[null,null,null,null,"",""]
[null,null,null,null,"",""]
[null,null,null,null,"",""]
[null,null,null,null,"",""]
[null,null,null,null,"",""]
[null,null,null,null,"",""]
[null,null,null,null,"",""]
[null,null,null,null,"",""]
[null,null,null,null,"",""]
[null,null,null,null,"",""]
[null,null,null,null,"",""]
[null,null,null,null,"",""]
[null,null,null,null,"",""]
[null,null,null,null,"",""]
[null,null,null,null,{"$f":"IF(D199>0,D199,\"\")","v":""},{"$f":"IF(D199>0,$J$1-D199,\"\")","v":""}]
[null,null,null,null,"",""]
[null,null,null,null,"",""]
[null,null,null,null,"",""]
[null,null,null,null,"",""]
[null,null,null,null,"",""]
[null,null,null,null,"",""]
[null,null,null,null,"",""]
[null,null,null,null,"",""]
[null,null,null,null,"",""]
[null,null,null,null,"",""]
[null,null,null,null,"",""]
[null,null,null,null,"",""]
[null,null,null,null,"",""]
[null,null,null,null,"",""]
[null,null,null,null,"",""]
[null,null,null,null,"",""]
[null,null,null,null,"",""]
[null,null,null,null,"",""]
[null,null,null,null,"",""]
[null,null,null,null,"",""]
[null,null,null,null,"",""]
[null,null,null,null,"",""]
[null,null,null,null,"",""]
[null,null,null,null,"",""]
[null,null,null,null,"",""]
[null,null,null,null,"",""]
[null,null,null,null,"",""]
[null,null,null,null,"",""]
[null,null,null,null,"",""]
[null,null,null,null,"",""]
[null,null,null,null,"",""]
[null,null,null,null,"",""]
[null,null,null,null,"",""]
[null,null,null,null,"",""]
[null,null,null,null,"",""]
[null,null,null,null,"",""]
[null,null,null,null,"",""]
[null,null,null,null,"",""]
[null,null,null,null,"",""]
[null,null,null,null,"",""]
[null,null,null,null,"",""]
[null,null,null,null,"",""]
[null,null,null,null,"",""]
[null,null,null,null,"",""]
[null,null,null,null,"",""]
[null,null,null,null,"",""]
[null,null,null,null,"",""]
[null,null,null,null,"",""]
[null,null,null,null,"",""]
[null,null,null,null,"",""]
[null,null,null,null,"",""]
[null,null,null,null,"",""]
[null,null,null,null,"",""]
[null,null,null,null,"",""]
[null,null,null,null,"",""]
[null,null,null,null,"",""]
[null,null,null,null,"",""]
[null,null,null,null,"",""]
[null,null,null,null,"",""]
[null,null,null,null,"",""]
[null,null,null,null,"",""]
[null,null,null,null,"",""]
[null,null,null,null,"",""]
[null,null,null,null,{"$f":"IF(D263>0,D263,\"\")","v":""},{"$f":"IF(D263>0,$J$1-D263,\"\")","v":""}]
[null,null,null,null,"",""]
[null,null,null,null,"",""]
[null,null,null,null,"",""]
[null,null,null,null,"",""]
[null,null,null,null,"",""]
[null,null,null,null,"",""]
[null,null,null,null,"",""]
[null,null,null,null,"",""]
[null,null,null,null,"",""]
[null,null,null,null,"",""]
[null,null,null,null,"",""]
[null,null,null,null,"",""]
[null,null,null,null,"",""]
[null,null,null,null,"",""]
[null,null,null,null,"",""]
[null,null,null,null,"",""]
[null,null,null,null,"",""]
[null,null,null,null,"",""]
[null,null,null,null,"",""]
[null,null,null,null,"",""]
[null,null,null,null,"",""]
[null,null,null,null,"",""]
[null,null,null,null,"",""]
[null,null,null,null,"",""]
[null,null,null,null,"",""]
[null,null,null,null,"",""]
[null,null,null,null,"",""]
[null,null,null,null,"",""]
[null,null,null,null,"",""]
[null,null,null,null,"",""]
[null,null,null,null,"",""]
[null,null,null,null,"",""]
[null,null,null,null,"",""]
[null,null,null,null,"",""]
[null,null,null,null,"",""]
[null,null,null,null,"",""]
[null,null,null,null,"",""]
[null,null,null,null,"",""]
[null,null,null,null,"",""]
[null,null,null,null,"",""]
[null,null,null,null,"",""]
[null,null,null,null,"",""]
[null,null,null,null,"",""]
[null,null,null,null,"",""]
[null,null,null,null,"",""]
[null,null,null,null,"",""]
[null,null,null,null,"",""]
[null,null,null,null,"",""]
[null,null,null,null,"",""]
[null,null,null,null,"",""]
[null,null,null,null,"",""]
[null,null,null,null,"",""]
[null,null,null,null,"",""]
[null,null,null,null,"",""]
[null,null,null,null,"",""]
[null,null,null,null,"",""]
[null,null,null,null,"",""]
[null,null,null,null,"",""]
[null,null,null,null,"",""]
[null,null,null,null,"",""]
[null,null,null,null,"",""]
[null,null,null,null,"",""]
[null,null,null,null,"",""]
[null,null,null,null,{"$f":"IF(D327>0,D327,\"\")","v":""},{"$f":"IF(D327>0,$J$1-D327,\"\")","v":""}]
[null,null,null,null,"",""]
[null,null,null,null,"",""]
[null,null,null,null,"",""]
[null,null,null,null,"",""]
[null,null,null,null,"",""]
[null,null,null,null,"",""]
[null,null,null,null,"",""]
[null,null,null,null,"",""]
[null,null,null,null,"",""]
[null,null,null,null,"",""]
[null,null,null,null,"",""]
[null,null,null,null,"",""]
[null,null,null,null,"",""]
[null,null,null,null,"",""]
[null,null,null,null,"",""]
[null,null,null,null,"",""]
[null,null,null,null,"",""]
[null,null,null,null,"",""]
[null,null,null,null,"",""]
[null,null,null,null,"",""]
[null,null,null,null,"",""]
[null,null,null,null,"",""]
[null,null,null,null,"",""]
[null,null,null,null,"",""]
[null,null,null,null,"",""]
[null,null,null,null,"",""]
[null,null,null,null,"",""]
[null,null,null,null,"",""]
[null,null,null,null,"",""]
[null,null,null,null,"",""]
[null,null,null,null,"",""]
[null,null,null,null,"",""]
[null,null,null,null,"",""]
[null,null,null,null,"",""]
[null,null,null,null,"",""]
[null,null,null,null,"",""]
[null,null,null,null,"",""]
[null,null,null,null,"",""]
[null,null,null,null,"",""]
[null,null,null,null,"",""]
[null,null,null,null,"",""]
[null,null,null,null,"",""]
[null,null,null,null,"",""]
[null,null,null,null,"",""]
[null,null,null,null,"",""]
[null,null,null,null,"",""]
[null,null,null,null,"",""]
[null,null,null,null,"",""]
[null,null,null,null,"",""]
[null,null,null,null,"",""]
[null,null,null,null,"",""]
[null,null,null,null,"",""]
[null,null,null,null,"",""]
[null,null,null,null,"",""]
[null,null,null,null,"",""]
[null,null,null,null,"",""]
[null,null,null,null,"",""]
[null,null,null,null,"",""]
[null,null,null,null,"",""]
[null,null,null,null,"",""]
[null,null,null,null,"",""]
[null,null,null,null,"",""]
[null,null,null,null,"",""]
[null,null,null,null,{"$f":"IF(D391>0,D391,\"\")","v":""},{"$f":"IF(D391>0,$J$1-D391,\"\")","v":""}]
[null,null,null,null,"",""]
[null,null,null,null,"",""]
[null,null,null,null,"",""]
[null,null,null,null,"",""]
[null,null,null,null,"",""]
[null,null,null,null,"",""]
[null,null,null,null,"",""]
[null,null,null,null,"",""]
[null,null,null,null,"",""]
[null,null,null,null,"",""]
[null,null,null,null,"",""]
[null,null,null,null,"",""]
[null,null,null,null,"",""]
[null,null,null,null,"",""]
[null,null,null,null,"",""]
[null,null,null,null,"",""]
[null,null,null,null,"",""]
[null,null,null,null,"",""]
[null,null,null,null,"",""]
[null,null,null,null,"",""]
[null,null,null,null,"",""]
[null,null,null,null,"",""]
[null,null,null,null,"",""]
[null,null,null,null,"",""]
[null,null,null,null,"",""]
[null,null,null,null,"",""]
[null,null,null,null,"",""]
[null,null,null,null,"",""]
[null,null,null,null,"",""]
[null,null,null,null,"",""]
[null,null,null,null,"",""]
[null,null,null,null,"",""]
[null,null,null,null,"",""]
[null,null,null,null,"",""]
[null,null,null,null,"",""]
[null,null,null,null,"",""]
[null,null,null,null,"",""]
[null,null,null,null,"",""]
[null,null,null,null,"",""]
[null,null,null,null,"",""]
[null,null,null,null,"",""]
[null,null,null,null,"",""]
[null,null,null,null,"",""]
[null,null,null,null,"",""]
[null,null,null,null,"",""]
[null,null,null,null,"",""]
[null,null,null,null,"",""]
[null,null,null,null,"",""]
[null,null,null,null,"",""]
[null,null,null,null,"",""]
[null,null,null,null,"",""]
[null,null,null,null,"",""]
[null,null,null,null,"",""]
[null,null,null,null,"",""]
[null,null,null,null,"",""]
[null,null,null,null,"",""]
[null,null,null,null,"",""]
[null,null,null,null,"",""]
[null,null,null,null,"",""]
[null,null,null,null,"",""]
[null,null,null,null,"",""]
[null,null,null,null,"",""]
[null,null,null,null,"",""]
[null,null,null,null,{"$f":"IF(D455>0,D455,\"\")","v":""},{"$f":"IF(D455>0,$J$1-D455,\"\")","v":""}]
[null,null,null,null,"",""]
[null,null,null,null,"",""]
[null,null,null,null,"",""]
[null,null,null,null,"",""]
[null,null,null,null,"",""]
[null,null,null,null,"",""]
[null,null,null,null,"",""]
[null,null,null,null,"",""]
[null,null,null,null,"",""]
[null,null,null,null,"",""]
[null,null,null,null,"",""]
[null,null,null,null,"",""]
[null,null,null,null,"",""]
[null,null,null,null,"",""]
[null,null,null,null,"",""]
[null,null,null,null,"",""]
[null,null,null,null,"",""]
[null,null,null,null,"",""]
[null,null,null,null,"",""]
[null,null,null,null,"",""]
[null,null,null,null,"",""]
[null,null,null,null,"",""]
[null,null,null,null,"",""]
[null,null,null,null,"",""]
[null,null,null,null,"",""]
[null,null,null,null,"",""]
[null,null,null,null,"",""]
[null,null,null,null,"",""]
[null,null,null,null,"",""]
[null,null,null,null,"",""]
[null,null,null,null,"",""]
[null,null,null,null,"",""]
[null,null,null,null,"",""]
[null,null,null,null,"",""]
[null,null,null,null,"",""]
[null,null,null,null,"",""]
[null,null,null,null,"",""]
[null,null,null,null,"",""]
[null,null,null,null,"",""]
[null,null,null,null,"",""]
[null,null,null,null,"",""]
[null,null,null,null,"",""]
[null,null,null,null,"",""]
[null,null,null,null,"",""]
[null,null,null,null,"",""]
[null,null,null,null,"",""]
[null,null,null,null,"",""]
[null,null,null,null,"",""]
[null,null,null,null,"",""]
[null,null,null,null,"",""]
[null,null,null,null,"",""]
[null,null,null,null,"",""]
[null,null,null,null,"",""]
[null,null,null,null,"",""]
[null,null,null,null,"",""]
[null,null,null,null,"",""]
[null,null,null,null,"",""]
[null,null,null,null,"",""]
[null,null,null,null,"",""]
[null,null,null,null,"",""]
[null,null,null,null,"",""]
[null,null,null,null,"",""]
[null,null,null,null,"",""]
[null,null,null,null,{"$f":"IF(D519>0,D519,\"\")","v":""},{"$f":"IF(D519>0,$J$1-D519,\"\")","v":""}]
[null,null,null,null,"",""]
[null,null,null,null,"",""]
[null,null,null,null,"",""]
[null,null,null,null,"",""]
[null,null,null,null,"",""]
[null,null,null,null,"",""]
[null,null,null,null,"",""]
[null,null,null,null,"",""]
[null,null,null,null,"",""]
[null,null,null,null,"",""]
[null,null,null,null,"",""]
[null,null,null,null,"",""]
[null,null,null,null,"",""]
[null,null,null,null,"",""]
[null,null,null,null,"",""]
[null,null,null,null,"",""]
[null,null,null,null,"",""]
[null,null,null,null,"",""]
[null,null,null,null,"",""]
[null,null,null,null,"",""]
[null,null,null,null,"",""]
[null,null,null,null,"",""]
[null,null,null,null,"",""]
[null,null,null,null,"",""]
[null,null,null,null,"",""]
[null,null,null,null,"",""]
[null,null,null,null,"",""]
[null,null,null,null,"",""]
[null,null,null,null,"",""]
[null,null,null,null,"",""]
[null,null,null,null,"",""]
[null,null,null,null,"",""]
[null,null,null,null,"",""]
[null,null,null,null,"",""]
[null,null,null,null,"",""]
[null,null,null,null,"",""]
[null,null,null,null,"",""]
[null,null,null,null,"",""]
[null,null,null,null,"",""]
[null,null,null,null,"",""]
[null,null,null,null,"",""]
[null,null,null,null,"",""]
[null,null,null,null,"",""]
[null,null,null,null,"",""]
[null,null,null,null,"",""]
[null,null,null,null,"",""]
[null,null,null,null,"",""]
[null,null,null,null,"",""]
[null,null,null,null,"",""]
[null,null,null,null,"",""]
[null,null,null,null,"",""]
[null,null,null,null,"",""]
[null,null,null,null,"",""]
[null,null,null,null,"",""]
[null,null,null,null,"",""]
[null,null,null,null,"",""]
[null,null,null,null,"",""]
[null,null,null,null,"",""]
[null,null,null,null,"",""]
[null,null,null,null,"",""]
[null,null,null,null,"",""]
[null,null,null,null,"",""]
[null,null,null,null,"",""]
[null,null,null,null,{"$f":"IF(D583>0,D583,\"\")","v":""},{"$f":"IF(D583>0,$J$1-D583,\"\")","v":""}]
[null,null,null,null,"",""]
[null,null,null,null,"",""]
[null,null,null,null,"",""]
[null,null,null,null,"",""]
[null,null,null,null,"",""]
[null,null,null,null,"",""]
[null,null,null,null,"",""]
[null,null,null,null,"",""]
[null,null,null,null,"",""]
[null,null,null,null,"",""]
[null,null,null,null,"",""]
[null,null,null,null,"",""]
[null,null,null,null,"",""]
[null,null,null,null,"",""]
[null,null,null,null,"",""]
[null,null,null,null,"",""]
[null,null,null,null,"",""]
[null,null,null,null,"",""]
[null,null,null,null,"",""]
[null,null,null,null,"",""]
[null,null,null,null,"",""]
[null,null,null,null,"",""]
[null,null,null,null,"",""]
[null,null,null,null,"",""]
[null,null,null,null,"",""]
[null,null,null,null,"",""]
[null,null,null,null,"",""]
[null,null,null,null,"",""]
[null,null,null,null,"",""]
[null,null,null,null,"",""]
[null,null,null,null,"",""]
[null,null,null,null,"",""]
[null,null,null,null,"",""]
[null,null,null,null,"",""]
[null,null,null,null,"",""]
[null,null,null,null,"",""]
[null,null,null,null,"",""]
[null,null,null,null,"",""]
[null,null,null,null,"",""]
[null,null,null,null,"",""]
[null,null,null,null,"",""]
[null,null,null,null,"",""]
[null,null,null,null,"",""]
[null,null,null,null,"",""]
[null,null,null,null,"",""]
[null,null,null,null,"",""]
[null,null,null,null,"",""]
[null,null,null,null,"",""]
[null,null,null,null,"",""]
[null,null,null,null,"",""]
[null,null,null,null,"",""]
[null,null,null,null,"",""]
[null,null,null,null,"",""]
[null,null,null,null,"",""]
[null,null,null,null,"",""]
[null,null,null,null,"",""]
[null,null,null,null,"",""]
[null,null,null,null,"",""]
[null,null,null,null,"",""]
[null,null,null,null,"",""]
[null,null,null,null,"",""]
[null,null,null,null,"",""]
[null,null,null,null,"",""]
[null,null,null,null,{"$f":"IF(D647>0,D647,\"\")","v":""},{"$f":"IF(D647>0,$J$1-D647,\"\")","v":""}]
[null,null,null,null,"",""]
[null,null,null,null,"",""]
[null,null,null,null,"",""]
[null,null,null,null,"",""]
[null,null,null,null,"",""]
[null,null,null,null,"",""]
[null,null,null,null,"",""]
[null,null,null,null,"",""]
[null,null,null,null,"",""]
[null,null,null,null,"",""]
[null,null,null,null,"",""]
[null,null,null,null,"",""]
[null,null,null,null,"",""]
[null,null,null,null,"",""]
[null,null,null,null,"",""]
[null,null,null,null,"",""]
[null,null,null,null,"",""]
[null,null,null,null,"",""]
[null,null,null,null,"",""]
[null,null,null,null,"",""]
[null,null,null,null,"",""]
[null,null,null,null,"",""]
[null,null,null,null,"",""]
[null,null,null,null,"",""]
[null,null,null,null,"",""]
[null,null,null,null,"",""]
[null,null,null,null,"",""]
[null,null,null,null,"",""]
[null,null,null,null,"",""]
[null,null,null,null,"",""]
[null,null,null,null,"",""]
[null,null,null,null,"",""]
[null,null,null,null,"",""]
[null,null,null,null,"",""]
[null,null,null,null,"",""]
[null,null,null,null,"",""]
[null,null,null,null,"",""]
[null,null,null,null,"",""]
[null,null,null,null,"",""]
[null,null,null,null,"",""]
[null,null,null,null,"",""]
[null,null,null,null,"",""]
[null,null,null,null,"",""]
[null,null,null,null,"",""]
[null,null,null,null,"",""]
[null,null,null,null,"",""]
[null,null,null,null,"",""]
[null,null,null,null,"",""]
[null,null,null,null,"",""]
[null,null,null,null,"",""]
[null,null,null,null,"",""]
[null,null,null,null,"",""]
[null,null,null,null,"",""]
[null,null,null,null,"",""]
[null,null,null,null,"",""]
[null,null,null,null,"",""]
[null,null,null,null,"",""]
[null,null,null,null,"",""]
[null,null,null,null,"",""]
[null,null,null,null,"",""]
[null,null,null,null,"",""]
[null,null,null,null,"",""]
[null,null,null,null,"",""]
[null,null,null,null,{"$f":"IF(D711>0,D711,\"\")","v":""},{"$f":"IF(D711>0,$J$1-D711,\"\")","v":""}]
[null,null,null,null,"",""]
[null,null,null,null,"",""]
[null,null,null,null,"",""]
[null,null,null,null,"",""]
[null,null,null,null,"",""]
[null,null,null,null,"",""]
[null,null,null,null,"",""]
[null,null,null,null,"",""]
[null,null,null,null,"",""]
[null,null,null,null,"",""]
[null,null,null,null,"",""]
[null,null,null,null,"",""]
[null,null,null,null,"",""]
[null,null,null,null,"",""]
[null,null,null,null,"",""]
[null,null,null,null,"",""]
[null,null,null,null,"",""]
[null,null,null,null,"",""]
[null,null,null,null,"",""]
[null,null,null,null,"",""]
[null,null,null,null,"",""]
[null,null,null,null,"",""]
[null,null,null,null,"",""]
[null,null,null,null,"",""]
[null,null,null,null,"",""]
[null,null,null,null,"",""]
[null,null,null,null,"",""]
[null,null,null,null,"",""]
[null,null,null,null,"",""]
[null,null,null,null,"",""]
[null,null,null,null,"",""]
[null,null,null,null,"",""]
[null,null,null,null,"",""]
[null,null,null,null,"",""]
[null,null,null,null,"",""]
[null,null,null,null,"",""]
[null,null,null,null,"",""]
[null,null,null,null,"",""]
[null,null,null,null,"",""]
[null,null,null,null,"",""]
[null,null,null,null,"",""]
[null,null,null,null,"",""]
[null,null,null,null,"",""]
[null,null,null,null,"",""]
[null,null,null,null,"",""]
[null,null,null,null,"",""]
[null,null,null,null,"",""]
[null,null,null,null,"",""]
[null,null,null,null,"",""]
[null,null,null,null,"",""]
[null,null,null,null,"",""]
[null,null,null,null,"",""]
[null,null,null,null,"",""]
[null,null,null,null,"",""]
[null,null,null,null,"",""]
[null,null,null,null,"",""]
[null,null,null,null,"",""]
[null,null,null,null,"",""]
[null,null,null,null,"",""]
[null,null,null,null,"",""]
[null,null,null,null,"",""]
[null,null,null,null,"",""]
[null,null,null,null,"",""]
[null,null,null,null,{"$f":"IF(D775>0,D775,\"\")","v":""},{"$f":"IF(D775>0,$J$1-D775,\"\")","v":""}]
[null,null,null,null,"",""]
[null,null,null,null,"",""]
[null,null,null,null,"",""]
[null,null,null,null,"",""]
[null,null,null,null,"",""]
[null,null,null,null,"",""]
[null,null,null,null,"",""]
[null,null,null,null,"",""]
[null,null,null,null,"",""]
[null,null,null,null,"",""]
[null,null,null,null,"",""]
[null,null,null,null,"",""]
[null,null,null,null,"",""]
[null,null,null,null,"",""]
[null,null,null,null,"",""]
[null,null,null,null,"",""]
[null,null,null,null,"",""]
[null,null,null,null,"",""]
[null,null,null,null,"",""]
[null,null,null,null,"",""]
[null,null,null,null,"",""]
[null,null,null,null,"",""]
[null,null,null,null,"",""]
[null,null,null,null,"",""]
[null,null,null,null,"",""]
[null,null,null,null,"",""]
[null,null,null,null,"",""]
[null,null,null,null,"",""]
[null,null,null,null,"",""]
[null,null,null,null,"",""]
[null,null,null,null,"",""]
[null,null,null,null,"",""]
[null,null,null,null,"",""]
[null,null,null,null,"",""]
[null,null,null,null,"",""]
[null,null,null,null,"",""]
[null,null,null,null,"",""]
[null,null,null,null,"",""]
[null,null,null,null,"",""]
[null,null,null,null,"",""]
[null,null,null,null,"",""]
[null,null,null,null,"",""]
[null,null,null,null,"",""]
[null,null,null,null,"",""]
[null,null,null,null,"",""]
[null,null,null,null,"",""]
[null,null,null,null,"",""]
[null,null,null,null,"",""]
[null,null,null,null,"",""]
[null,null,null,null,"",""]
[null,null,null,null,"",""]
[null,null,null,null,"",""]
[null,null,null,null,"",""]
[null,null,null,null,"",""]
[null,null,null,null,"",""]
[null,null,null,null,"",""]
[null,null,null,null,"",""]
[null,null,null,null,"",""]
[null,null,null,null,"",""]
[null,null,null,null,"",""]
[null,null,null,null,"",""]
[null,null,null,null,"",""]
[null,null,null,null,"",""]
[null,null,null,null,{"$f":"IF(D839>0,D839,\"\")","v":""},{"$f":"IF(D839>0,$J$1-D839,\"\")","v":""}]
[null,null,null,null,"",""]
[null,null,null,null,"",""]
[null,null,null,null,"",""]
[null,null,null,null,"",""]
[null,null,null,null,"",""]
[null,null,null,null,"",""]
[null,null,null,null,"",""]
[null,null,null,null,"",""]
[null,null,null,null,"",""]
[null,null,null,null,"",""]
[null,null,null,null,"",""]
[null,null,null,null,"",""]
[null,null,null,null,"",""]
[null,null,null,null,"",""]
[null,null,null,null,"",""]
[null,null,null,null,"",""]
[null,null,null,null,"",""]
[null,null,null,null,"",""]
[null,null,null,null,"",""]
[null,null,null,null,"",""]
[null,null,null,null,"",""]
[null,null,null,null,"",""]
[null,null,null,null,"",""]
[null,null,null,null,"",""]
[null,null,null,null,"",""]
[null,null,null,null,"",""]
[null,null,null,null,"",""]
[null,null,null,null,"",""]
[null,null,null,null,"",""]
[null,null,null,null,"",""]
[null,null,null,null,"",""]
[null,null,null,null,"",""]
[null,null,null,null,"",""]
[null,null,null,null,"",""]
[null,null,null,null,"",""]
[null,null,null,null,"",""]
[null,null,null,null,"",""]
[null,null,null,null,"",""]
[null,null,null,null,"",""]
[null,null,null,null,"",""]
[null,null,null,null,"",""]
[null,null,null,null,"",""]
[null,null,null,null,"",""]
[null,null,null,null,"",""]
[null,null,null,null,"",""]
[null,null,null,null,"",""]
[null,null,null,null,"",""]
[null,null,null,null,"",""]
[null,null,null,null,"",""]
[null,null,null,null,"",""]
[null,null,null,null,"",""]
[null,null,null,null,"",""]
[null,null,null,null,"",""]
[null,null,null,null,"",""]
[null,null,null,null,"",""]
[null,null,null,null,"",""]
[null,null,null,null,"",""]
[null,null,null,null,"",""]
[null,null,null,null,"",""]
[null,null,null,null,"",""]
[null,null,null,null,"",""]
[null,null,null,null,"",""]
[null,null,null,null,"",""]
[null,null,null,null,{"$f":"IF(D903>0,D903,\"\")","v":""},{"$f":"IF(D903>0,$J$1-D903,\"\")","v":""}]
[null,null,null,null,"",""]
[null,null,null,null,"",""]
[null,null,null,null,"",""]
[null,null,null,null,"",""]
[null,null,null,null,"",""]
[null,null,null,null,"",""]
[null,null,null,null,"",""]
[null,null,null,null,"",""]
[null,null,null,null,"",""]
[null,null,null,null,"",""]
[null,null,null,null,"",""]
[null,null,null,null,"",""]
[null,null,null,null,"",""]
[null,null,null,null,"",""]
[null,null,null,null,"",""]
[null,null,null,null,"",""]
[null,null,null,null,"",""]
[null,null,null,null,"",""]
[null,null,null,null,"",""]
[null,null,null,null,"",""]
[null,null,null,null,"",""]
[null,null,null,null,"",""]
[null,null,null,null,"",""]
[null,null,null,null,"",""]
[null,null,null,null,"",""]
[null,null,null,null,"",""]
[null,null,null,null,"",""]
[null,null,null,null,"",""]
[null,null,null,null,"",""]
[null,null,null,null,"",""]
[null,null,null,null,"",""]
[null,null,null,null,"",""]
[null,null,null,null,"",""]
[null,null,null,null,"",""]
[null,null,null,null,"",""]
[null,null,null,null,"",""]
[null,null,null,null,"",""]
[null,null,null,null,"",""]
[null,null,null,null,"",""]
[null,null,null,null,"",""]
[null,null,null,null,"",""]
[null,null,null,null,"",""]
[null,null,null,null,"",""]
[null,null,null,null,"",""]
[null,null,null,null,"",""]
[null,null,null,null,"",""]
[null,null,null,null,"",""]
[null,null,null,null,"",""]
[null,null,null,null,"",""]
[null,null,null,null,"",""]
[null,null,null,null,"",""]
[null,null,null,null,"",""]
[null,null,null,null,"",""]
[null,null,null,null,"",""]
[null,null,null,null,"",""]
[null,null,null,null,"",""]
[null,null,null,null,"",""]
[null,null,null,null,"",""]
[null,null,null,null,"",""]
[null,null,null,null,"",""]
[null,null,null,null,"",""]
[null,null,null,null,"",""]
[null,null,null,null,"",""]
[null,null,null,null,{"$f":"IF(D967>0,D967,\"\")","v":""},{"$f":"IF(D967>0,$J$1-D967,\"\")","v":""}]
[null,null,null,null,"",""]
[null,null,null,null,"",""]
[null,null,null,null,"",""]
[null,null,null,null,"",""]
[null,null,null,null,"",""]
[null,null,null,null,"",""]
[null,null,null,null,"",""]
[null,null,null,null,"",""]
[null,null,null,null,"",""]
[null,null,null,null,"",""]
[null,null,null,null,"",""]
[null,null,null,null,"",""]
[null,null,null,null,"",""]
[null,null,null,null,"",""]
[null,null,null,null,"",""]
[null,null,null,null,"",""]
[null,null,null,null,"",""]
[null,null,null,null,"",""]
[null,null,null,null,"",""]
[null,null,null,null,"",""]
[null,null,null,null,"",""]
[null,null,null,null,"",""]
[null,null,null,null,"",""]
[null,null,null,null,"",""]
[null,null,null,null,"",""]
[null,null,null,null,"",""]
[null,null,null,null,"",""]
[null,null,null,null,"",""]
[null,null,null,null,"",""]
[null,null,null,null,"",""]
[null,null,null,null,"",""]
[null,null,null,null,"",""]
[null,null,null,null,"",""]
[null,null,null,null,"",""]
[null,null,null,null,"",""]
[null,null,null,null,"",""]
[null,null,null,null,"",""]
[null,null,null,null,"",""]
[null,null,null,null,"",""]
[null,null,null,null,"",""]
[null,null,null,null,"",""]
[null,null,null,null,"",""]
[null,null,null,null,"",""]
[null,null,null,null,"",""]
[null,null,null,null,"",""]
[null,null,null,null,"",""]
[null,null,null,null,"",""]
[null,null,null,null,"",""]
[null,null,null,null,"",""]
[null,null,null,null,"",""]
[null,null,null,null,"",""]
[null,null,null,null,"",""]
[null,null,null,null,"",""]
[null,null,null,null,"",""]
[null,null,null,null,"",""]
[null,null,null,null,"",""]
[null,null,null,null,"",""]
[null,null,null,null,"",""]
[null,null,null,null,"",""]
[null,null,null,null,"",""]
[null,null,null,null,"",""]
[null,null,null,null,"",""]
[null,null,null,null,"",""]
[null,null,null,null,{"$f":"IF(D1031>0,D1031,\"\")","v":""},{"$f":"IF(D1031>0,$J$1-D1031,\"\")","v":""}]
[null,null,null,null,"",""]
[null,null,null,null,"",""]
[null,null,null,null,"",""]
[null,null,null,null,"",""]
[null,null,null,null,"",""]
[null,null,null,null,"",""]
[null,null,null,null,"",""]
[null,null,null,null,"",""]
[null,null,null,null,"",""]
[null,null,null,null,"",""]
[null,null,null,null,""]

{"sheet":"Sheet2","index":1,"n_rows":1038,"n_cols":10,"rows_kept":1038,"cut":false,"hidden":false,"merged":[]}
[null,null,null,null,null,null,null,null,null,{"$f":"TODAY()","v":"2019-05-13"}]
[]
[]
[]
[]
[3,"محمد",5656,"2019-01-20",{"$f":"IF(D6>0,D6,\"\")","v":"2019-01-20"},{"$f":"IF(D6>0,$J$1-D6,\"\")","v":113}]
[4,"اسلام",6454,"2019-02-20","2019-02-20",82]
[6,null,null,null,"",""]
[7,"باسم",null,"2019-01-25","2019-01-25",108]
[null,null,null,null,"",""]
[null,null,null,null,"",""]
[null,null,null,null,"",""]
[null,null,null,null,"",""]
[null,null,null,null,"",""]
[null,null,null,null,"",""]
[null,null,null,null,"",""]
[null,null,null,null,"",""]
[null,null,null,null,"",""]
[null,null,null,null,"",""]
[null,null,null,null,"",""]
[null,null,null,null,"",""]
[null,null,null,null,"",""]
[null,null,null,null,"",""]
[null,null,null,null,"",""]
[null,null,null,null,"",""]
[null,null,null,null,"",""]
[null,null,null,null,"",""]
[null,null,null,null,"",""]
[null,null,null,null,"",""]
[null,null,null,null,"",""]
[null,null,null,null,"",""]
[null,null,null,null,"",""]
[null,null,null,null,"",""]
[null,null,null,null,"",""]
[null,null,null,null,"",""]
[null,null,null,null,"",""]
[null,null,null,null,"",""]
[null,null,null,null,"",""]
[null,null,null,null,"",""]
[null,null,null,null,"",""]
[null,null,null,null,"",""]
[null,null,null,null,"",""]
[null,null,null,null,"",""]
[null,null,null,null,"",""]
[null,null,null,null,"",""]
[null,null,null,null,"",""]
[null,null,null,null,"",""]
[null,null,null,null,"",""]
[null,null,null,null,"",""]
[null,null,null,null,"",""]
[null,null,null,null,"",""]
[null,null,null,null,"",""]
[null,null,null,null,"",""]
[null,null,null,null,"",""]
[null,null,null,null,"",""]
[null,null,null,null,"",""]
[null,null,null,null,"",""]
[null,null,null,null,"",""]
[null,null,null,null,"",""]
[null,null,null,null,"",""]
[null,null,null,null,"",""]
[null,null,null,null,"",""]
[null,null,null,null,"",""]
[null,null,null,null,"",""]
[null,null,null,null,"",""]
[null,null,null,null,"",""]
[null,null,null,null,"",""]
[null,null,null,null,"",""]
[null,null,null,null,"",""]
[null,null,null,null,{"$f":"IF(D70>0,D70,\"\")","v":""},{"$f":"IF(D70>0,$J$1-D70,\"\")","v":""}]
[null,null,null,null,"",""]
[null,null,null,null,"",""]
[null,null,null,null,"",""]
[null,null,null,null,"",""]
[null,null,null,null,"",""]
[null,null,null,null,"",""]
[null,null,null,null,"",""]
[null,null,null,null,"",""]
[null,null,null,null,"",""]
[null,null,null,null,"",""]
[null,null,null,null,"",""]
[null,null,null,null,"",""]
[null,null,null,null,"",""]
[null,null,null,null,"",""]
[null,null,null,null,"",""]
[null,null,null,null,"",""]
[null,null,null,null,"",""]
[null,null,null,null,"",""]
[null,null,null,null,"",""]
[null,null,null,null,"",""]
[null,null,null,null,"",""]
[null,null,null,null,"",""]
[null,null,null,null,"",""]
[null,null,null,null,"",""]
[null,null,null,null,"",""]
[null,null,null,null,"",""]
[null,null,null,null,"",""]
[null,null,null,null,"",""]
[null,null,null,null,"",""]
[null,null,null,null,"",""]
[null,null,null,null,"",""]
[null,null,null,null,"",""]
[null,null,null,null,"",""]
[null,null,null,null,"",""]
[null,null,null,null,"",""]
[null,null,null,null,"",""]
[null,null,null,null,"",""]
[null,null,null,null,"",""]
[null,null,null,null,"",""]
[null,null,null,null,"",""]
[null,null,null,null,"",""]
[null,null,null,null,"",""]
[null,null,null,null,"",""]
[null,null,null,null,"",""]
[null,null,null,null,"",""]
[null,null,null,null,"",""]
[null,null,null,null,"",""]
[null,null,null,null,"",""]
[null,null,null,null,"",""]
[null,null,null,null,"",""]
[null,null,null,null,"",""]
[null,null,null,null,"",""]
[null,null,null,null,"",""]
[null,null,null,null,"",""]
[null,null,null,null,"",""]
[null,null,null,null,"",""]
[null,null,null,null,"",""]
[null,null,null,null,"",""]
[null,null,null,null,"",""]
[null,null,null,null,"",""]
[null,null,null,null,"",""]
[null,null,null,null,"",""]
[null,null,null,null,"",""]
[null,null,null,null,{"$f":"IF(D134>0,D134,\"\")","v":""},{"$f":"IF(D134>0,$J$1-D134,\"\")","v":""}]
[null,null,null,null,"",""]
[null,null,null,null,"",""]
[null,null,null,null,"",""]
[null,null,null,null,"",""]
[null,null,null,null,"",""]
[null,null,null,null,"",""]
[null,null,null,null,"",""]
[null,null,null,null,"",""]
[null,null,null,null,"",""]
[null,null,null,null,"",""]
[null,null,null,null,"",""]
[null,null,null,null,"",""]
[null,null,null,null,"",""]
[null,null,null,null,"",""]
[null,null,null,null,"",""]
[null,null,null,null,"",""]
[null,null,null,null,"",""]
[null,null,null,null,"",""]
[null,null,null,null,"",""]
[null,null,null,null,"",""]
[null,null,null,null,"",""]
[null,null,null,null,"",""]
[null,null,null,null,"",""]
[null,null,null,null,"",""]
[null,null,null,null,"",""]
[null,null,null,null,"",""]
[null,null,null,null,"",""]
[null,null,null,null,"",""]
[null,null,null,null,"",""]
[null,null,null,null,"",""]
[null,null,null,null,"",""]
[null,null,null,null,"",""]
[null,null,null,null,"",""]
[null,null,null,null,"",""]
[null,null,null,null,"",""]
[null,null,null,null,"",""]
[null,null,null,null,"",""]
[null,null,null,null,"",""]
[null,null,null,null,"",""]
[null,null,null,null,"",""]
[null,null,null,null,"",""]
[null,null,null,null,"",""]
[null,null,null,null,"",""]
[null,null,null,null,"",""]
[null,null,null,null,"",""]
[null,null,null,null,"",""]
[null,null,null,null,"",""]
[null,null,null,null,"",""]
[null,null,null,null,"",""]
[null,null,null,null,"",""]
[null,null,null,null,"",""]
[null,null,null,null,"",""]
[null,null,null,null,"",""]
[null,null,null,null,"",""]
[null,null,null,null,"",""]
[null,null,null,null,"",""]
[null,null,null,null,"",""]
[null,null,null,null,"",""]
[null,null,null,null,"",""]
[null,null,null,null,"",""]
[null,null,null,null,"",""]
[null,null,null,null,"",""]
[null,null,null,null,"",""]
[null,null,null,null,{"$f":"IF(D198>0,D198,\"\")","v":""},{"$f":"IF(D198>0,$J$1-D198,\"\")","v":""}]
[null,null,null,null,"",""]
[null,null,null,null,"",""]
[null,null,null,null,"",""]
[null,null,null,null,"",""]
[null,null,null,null,"",""]
[null,null,null,null,"",""]
[null,null,null,null,"",""]
[null,null,null,null,"",""]
[null,null,null,null,"",""]
[null,null,null,null,"",""]
[null,null,null,null,"",""]
[null,null,null,null,"",""]
[null,null,null,null,"",""]
[null,null,null,null,"",""]
[null,null,null,null,"",""]
[null,null,null,null,"",""]
[null,null,null,null,"",""]
[null,null,null,null,"",""]
[null,null,null,null,"",""]
[null,null,null,null,"",""]
[null,null,null,null,"",""]
[null,null,null,null,"",""]
[null,null,null,null,"",""]
[null,null,null,null,"",""]
[null,null,null,null,"",""]
[null,null,null,null,"",""]
[null,null,null,null,"",""]
[null,null,null,null,"",""]
[null,null,null,null,"",""]
[null,null,null,null,"",""]
[null,null,null,null,"",""]
[null,null,null,null,"",""]
[null,null,null,null,"",""]
[null,null,null,null,"",""]
[null,null,null,null,"",""]
[null,null,null,null,"",""]
[null,null,null,null,"",""]
[null,null,null,null,"",""]
[null,null,null,null,"",""]
[null,null,null,null,"",""]
[null,null,null,null,"",""]
[null,null,null,null,"",""]
[null,null,null,null,"",""]
[null,null,null,null,"",""]
[null,null,null,null,"",""]
[null,null,null,null,"",""]
[null,null,null,null,"",""]
[null,null,null,null,"",""]
[null,null,null,null,"",""]
[null,null,null,null,"",""]
[null,null,null,null,"",""]
[null,null,null,null,"",""]
[null,null,null,null,"",""]
[null,null,null,null,"",""]
[null,null,null,null,"",""]
[null,null,null,null,"",""]
[null,null,null,null,"",""]
[null,null,null,null,"",""]
[null,null,null,null,"",""]
[null,null,null,null,"",""]
[null,null,null,null,"",""]
[null,null,null,null,"",""]
[null,null,null,null,"",""]
[null,null,null,null,{"$f":"IF(D262>0,D262,\"\")","v":""},{"$f":"IF(D262>0,$J$1-D262,\"\")","v":""}]
[null,null,null,null,"",""]
[null,null,null,null,"",""]
[null,null,null,null,"",""]
[null,null,null,null,"",""]
[null,null,null,null,"",""]
[null,null,null,null,"",""]
[null,null,null,null,"",""]
[null,null,null,null,"",""]
[null,null,null,null,"",""]
[null,null,null,null,"",""]
[null,null,null,null,"",""]
[null,null,null,null,"",""]
[null,null,null,null,"",""]
[null,null,null,null,"",""]
[null,null,null,null,"",""]
[null,null,null,null,"",""]
[null,null,null,null,"",""]
[null,null,null,null,"",""]
[null,null,null,null,"",""]
[null,null,null,null,"",""]
[null,null,null,null,"",""]
[null,null,null,null,"",""]
[null,null,null,null,"",""]
[null,null,null,null,"",""]
[null,null,null,null,"",""]
[null,null,null,null,"",""]
[null,null,null,null,"",""]
[null,null,null,null,"",""]
[null,null,null,null,"",""]
[null,null,null,null,"",""]
[null,null,null,null,"",""]
[null,null,null,null,"",""]
[null,null,null,null,"",""]
[null,null,null,null,"",""]
[null,null,null,null,"",""]
[null,null,null,null,"",""]
[null,null,null,null,"",""]
[null,null,null,null,"",""]
[null,null,null,null,"",""]
[null,null,null,null,"",""]
[null,null,null,null,"",""]
[null,null,null,null,"",""]
[null,null,null,null,"",""]
[null,null,null,null,"",""]
[null,null,null,null,"",""]
[null,null,null,null,"",""]
[null,null,null,null,"",""]
[null,null,null,null,"",""]
[null,null,null,null,"",""]
[null,null,null,null,"",""]
[null,null,null,null,"",""]
[null,null,null,null,"",""]
[null,null,null,null,"",""]
[null,null,null,null,"",""]
[null,null,null,null,"",""]
[null,null,null,null,"",""]
[null,null,null,null,"",""]
[null,null,null,null,"",""]
[null,null,null,null,"",""]
[null,null,null,null,"",""]
[null,null,null,null,"",""]
[null,null,null,null,"",""]
[null,null,null,null,"",""]
[null,null,null,null,{"$f":"IF(D326>0,D326,\"\")","v":""},{"$f":"IF(D326>0,$J$1-D326,\"\")","v":""}]
[null,null,null,null,"",""]
[null,null,null,null,"",""]
[null,null,null,null,"",""]
[null,null,null,null,"",""]
[null,null,null,null,"",""]
[null,null,null,null,"",""]
[null,null,null,null,"",""]
[null,null,null,null,"",""]
[null,null,null,null,"",""]
[null,null,null,null,"",""]
[null,null,null,null,"",""]
[null,null,null,null,"",""]
[null,null,null,null,"",""]
[null,null,null,null,"",""]
[null,null,null,null,"",""]
[null,null,null,null,"",""]
[null,null,null,null,"",""]
[null,null,null,null,"",""]
[null,null,null,null,"",""]
[null,null,null,null,"",""]
[null,null,null,null,"",""]
[null,null,null,null,"",""]
[null,null,null,null,"",""]
[null,null,null,null,"",""]
[null,null,null,null,"",""]
[null,null,null,null,"",""]
[null,null,null,null,"",""]
[null,null,null,null,"",""]
[null,null,null,null,"",""]
[null,null,null,null,"",""]
[null,null,null,null,"",""]
[null,null,null,null,"",""]
[null,null,null,null,"",""]
[null,null,null,null,"",""]
[null,null,null,null,"",""]
[null,null,null,null,"",""]
[null,null,null,null,"",""]
[null,null,null,null,"",""]
[null,null,null,null,"",""]
[null,null,null,null,"",""]
[null,null,null,null,"",""]
[null,null,null,null,"",""]
[null,null,null,null,"",""]
[null,null,null,null,"",""]
[null,null,null,null,"",""]
[null,null,null,null,"",""]
[null,null,null,null,"",""]
[null,null,null,null,"",""]
[null,null,null,null,"",""]
[null,null,null,null,"",""]
[null,null,null,null,"",""]
[null,null,null,null,"",""]
[null,null,null,null,"",""]
[null,null,null,null,"",""]
[null,null,null,null,"",""]
[null,null,null,null,"",""]
[null,null,null,null,"",""]
[null,null,null,null,"",""]
[null,null,null,null,"",""]
[null,null,null,null,"",""]
[null,null,null,null,"",""]
[null,null,null,null,"",""]
[null,null,null,null,"",""]
[null,null,null,null,{"$f":"IF(D390>0,D390,\"\")","v":""},{"$f":"IF(D390>0,$J$1-D390,\"\")","v":""}]
[null,null,null,null,"",""]
[null,null,null,null,"",""]
[null,null,null,null,"",""]
[null,null,null,null,"",""]
[null,null,null,null,"",""]
[null,null,null,null,"",""]
[null,null,null,null,"",""]
[null,null,null,null,"",""]
[null,null,null,null,"",""]
[null,null,null,null,"",""]
[null,null,null,null,"",""]
[null,null,null,null,"",""]
[null,null,null,null,"",""]
[null,null,null,null,"",""]
[null,null,null,null,"",""]
[null,null,null,null,"",""]
[null,null,null,null,"",""]
[null,null,null,null,"",""]
[null,null,null,null,"",""]
[null,null,null,null,"",""]
[null,null,null,null,"",""]
[null,null,null,null,"",""]
[null,null,null,null,"",""]
[null,null,null,null,"",""]
[null,null,null,null,"",""]
[null,null,null,null,"",""]
[null,null,null,null,"",""]
[null,null,null,null,"",""]
[null,null,null,null,"",""]
[null,null,null,null,"",""]
[null,null,null,null,"",""]
[null,null,null,null,"",""]
[null,null,null,null,"",""]
[null,null,null,null,"",""]
[null,null,null,null,"",""]
[null,null,null,null,"",""]
[null,null,null,null,"",""]
[null,null,null,null,"",""]
[null,null,null,null,"",""]
[null,null,null,null,"",""]
[null,null,null,null,"",""]
[null,null,null,null,"",""]
[null,null,null,null,"",""]
[null,null,null,null,"",""]
[null,null,null,null,"",""]
[null,null,null,null,"",""]
[null,null,null,null,"",""]
[null,null,null,null,"",""]
[null,null,null,null,"",""]
[null,null,null,null,"",""]
[null,null,null,null,"",""]
[null,null,null,null,"",""]
[null,null,null,null,"",""]
[null,null,null,null,"",""]
[null,null,null,null,"",""]
[null,null,null,null,"",""]
[null,null,null,null,"",""]
[null,null,null,null,"",""]
[null,null,null,null,"",""]
[null,null,null,null,"",""]
[null,null,null,null,"",""]
[null,null,null,null,"",""]
[null,null,null,null,"",""]
[null,null,null,null,{"$f":"IF(D454>0,D454,\"\")","v":""},{"$f":"IF(D454>0,$J$1-D454,\"\")","v":""}]
[null,null,null,null,"",""]
[null,null,null,null,"",""]
[null,null,null,null,"",""]
[null,null,null,null,"",""]
[null,null,null,null,"",""]
[null,null,null,null,"",""]
[null,null,null,null,"",""]
[null,null,null,null,"",""]
[null,null,null,null,"",""]
[null,null,null,null,"",""]
[null,null,null,null,"",""]
[null,null,null,null,"",""]
[null,null,null,null,"",""]
[null,null,null,null,"",""]
[null,null,null,null,"",""]
[null,null,null,null,"",""]
[null,null,null,null,"",""]
[null,null,null,null,"",""]
[null,null,null,null,"",""]
[null,null,null,null,"",""]
[null,null,null,null,"",""]
[null,null,null,null,"",""]
[null,null,null,null,"",""]
[null,null,null,null,"",""]
[null,null,null,null,"",""]
[null,null,null,null,"",""]
[null,null,null,null,"",""]
[null,null,null,null,"",""]
[null,null,null,null,"",""]
[null,null,null,null,"",""]
[null,null,null,null,"",""]
[null,null,null,null,"",""]
[null,null,null,null,"",""]
[null,null,null,null,"",""]
[null,null,null,null,"",""]
[null,null,null,null,"",""]
[null,null,null,null,"",""]
[null,null,null,null,"",""]
[null,null,null,null,"",""]
[null,null,null,null,"",""]
[null,null,null,null,"",""]
[null,null,null,null,"",""]
[null,null,null,null,"",""]
[null,null,null,null,"",""]
[null,null,null,null,"",""]
[null,null,null,null,"",""]
[null,null,null,null,"",""]
[null,null,null,null,"",""]
[null,null,null,null,"",""]
[null,null,null,null,"",""]
[null,null,null,null,"",""]
[null,null,null,null,"",""]
[null,null,null,null,"",""]
[null,null,null,null,"",""]
[null,null,null,null,"",""]
[null,null,null,null,"",""]
[null,null,null,null,"",""]
[null,null,null,null,"",""]
[null,null,null,null,"",""]
[null,null,null,null,"",""]
[null,null,null,null,"",""]
[null,null,null,null,"",""]
[null,null,null,null,"",""]
[null,null,null,null,{"$f":"IF(D518>0,D518,\"\")","v":""},{"$f":"IF(D518>0,$J$1-D518,\"\")","v":""}]
[null,null,null,null,"",""]
[null,null,null,null,"",""]
[null,null,null,null,"",""]
[null,null,null,null,"",""]
[null,null,null,null,"",""]
[null,null,null,null,"",""]
[null,null,null,null,"",""]
[null,null,null,null,"",""]
[null,null,null,null,"",""]
[null,null,null,null,"",""]
[null,null,null,null,"",""]
[null,null,null,null,"",""]
[null,null,null,null,"",""]
[null,null,null,null,"",""]
[null,null,null,null,"",""]
[null,null,null,null,"",""]
[null,null,null,null,"",""]
[null,null,null,null,"",""]
[null,null,null,null,"",""]
[null,null,null,null,"",""]
[null,null,null,null,"",""]
[null,null,null,null,"",""]
[null,null,null,null,"",""]
[null,null,null,null,"",""]
[null,null,null,null,"",""]
[null,null,null,null,"",""]
[null,null,null,null,"",""]
[null,null,null,null,"",""]
[null,null,null,null,"",""]
[null,null,null,null,"",""]
[null,null,null,null,"",""]
[null,null,null,null,"",""]
[null,null,null,null,"",""]
[null,null,null,null,"",""]
[null,null,null,null,"",""]
[null,null,null,null,"",""]
[null,null,null,null,"",""]
[null,null,null,null,"",""]
[null,null,null,null,"",""]
[null,null,null,null,"",""]
[null,null,null,null,"",""]
[null,null,null,null,"",""]
[null,null,null,null,"",""]
[null,null,null,null,"",""]
[null,null,null,null,"",""]
[null,null,null,null,"",""]
[null,null,null,null,"",""]
[null,null,null,null,"",""]
[null,null,null,null,"",""]
[null,null,null,null,"",""]
[null,null,null,null,"",""]
[null,null,null,null,"",""]
[null,null,null,null,"",""]
[null,null,null,null,"",""]
[null,null,null,null,"",""]
[null,null,null,null,"",""]
[null,null,null,null,"",""]
[null,null,null,null,"",""]
[null,null,null,null,"",""]
[null,null,null,null,"",""]
[null,null,null,null,"",""]
[null,null,null,null,"",""]
[null,null,null,null,"",""]
[null,null,null,null,{"$f":"IF(D582>0,D582,\"\")","v":""},{"$f":"IF(D582>0,$J$1-D582,\"\")","v":""}]
[null,null,null,null,"",""]
[null,null,null,null,"",""]
[null,null,null,null,"",""]
[null,null,null,null,"",""]
[null,null,null,null,"",""]
[null,null,null,null,"",""]
[null,null,null,null,"",""]
[null,null,null,null,"",""]
[null,null,null,null,"",""]
[null,null,null,null,"",""]
[null,null,null,null,"",""]
[null,null,null,null,"",""]
[null,null,null,null,"",""]
[null,null,null,null,"",""]
[null,null,null,null,"",""]
[null,null,null,null,"",""]
[null,null,null,null,"",""]
[null,null,null,null,"",""]
[null,null,null,null,"",""]
[null,null,null,null,"",""]
[null,null,null,null,"",""]
[null,null,null,null,"",""]
[null,null,null,null,"",""]
[null,null,null,null,"",""]
[null,null,null,null,"",""]
[null,null,null,null,"",""]
[null,null,null,null,"",""]
[null,null,null,null,"",""]
[null,null,null,null,"",""]
[null,null,null,null,"",""]
[null,null,null,null,"",""]
[null,null,null,null,"",""]
[null,null,null,null,"",""]
[null,null,null,null,"",""]
[null,null,null,null,"",""]
[null,null,null,null,"",""]
[null,null,null,null,"",""]
[null,null,null,null,"",""]
[null,null,null,null,"",""]
[null,null,null,null,"",""]
[null,null,null,null,"",""]
[null,null,null,null,"",""]
[null,null,null,null,"",""]
[null,null,null,null,"",""]
[null,null,null,null,"",""]
[null,null,null,null,"",""]
[null,null,null,null,"",""]
[null,null,null,null,"",""]
[null,null,null,null,"",""]
[null,null,null,null,"",""]
[null,null,null,null,"",""]
[null,null,null,null,"",""]
[null,null,null,null,"",""]
[null,null,null,null,"",""]
[null,null,null,null,"",""]
[null,null,null,null,"",""]
[null,null,null,null,"",""]
[null,null,null,null,"",""]
[null,null,null,null,"",""]
[null,null,null,null,"",""]
[null,null,null,null,"",""]
[null,null,null,null,"",""]
[null,null,null,null,"",""]
[null,null,null,null,{"$f":"IF(D646>0,D646,\"\")","v":""},{"$f":"IF(D646>0,$J$1-D646,\"\")","v":""}]
[null,null,null,null,"",""]
[null,null,null,null,"",""]
[null,null,null,null,"",""]
[null,null,null,null,"",""]
[null,null,null,null,"",""]
[null,null,null,null,"",""]
[null,null,null,null,"",""]
[null,null,null,null,"",""]
[null,null,null,null,"",""]
[null,null,null,null,"",""]
[null,null,null,null,"",""]
[null,null,null,null,"",""]
[null,null,null,null,"",""]
[null,null,null,null,"",""]
[null,null,null,null,"",""]
[null,null,null,null,"",""]
[null,null,null,null,"",""]
[null,null,null,null,"",""]
[null,null,null,null,"",""]
[null,null,null,null,"",""]
[null,null,null,null,"",""]
[null,null,null,null,"",""]
[null,null,null,null,"",""]
[null,null,null,null,"",""]
[null,null,null,null,"",""]
[null,null,null,null,"",""]
[null,null,null,null,"",""]
[null,null,null,null,"",""]
[null,null,null,null,"",""]
[null,null,null,null,"",""]
[null,null,null,null,"",""]
[null,null,null,null,"",""]
[null,null,null,null,"",""]
[null,null,null,null,"",""]
[null,null,null,null,"",""]
[null,null,null,null,"",""]
[null,null,null,null,"",""]
[null,null,null,null,"",""]
[null,null,null,null,"",""]
[null,null,null,null,"",""]
[null,null,null,null,"",""]
[null,null,null,null,"",""]
[null,null,null,null,"",""]
[null,null,null,null,"",""]
[null,null,null,null,"",""]
[null,null,null,null,"",""]
[null,null,null,null,"",""]
[null,null,null,null,"",""]
[null,null,null,null,"",""]
[null,null,null,null,"",""]
[null,null,null,null,"",""]
[null,null,null,null,"",""]
[null,null,null,null,"",""]
[null,null,null,null,"",""]
[null,null,null,null,"",""]
[null,null,null,null,"",""]
[null,null,null,null,"",""]
[null,null,null,null,"",""]
[null,null,null,null,"",""]
[null,null,null,null,"",""]
[null,null,null,null,"",""]
[null,null,null,null,"",""]
[null,null,null,null,"",""]
[null,null,null,null,{"$f":"IF(D710>0,D710,\"\")","v":""},{"$f":"IF(D710>0,$J$1-D710,\"\")","v":""}]
[null,null,null,null,"",""]
[null,null,null,null,"",""]
[null,null,null,null,"",""]
[null,null,null,null,"",""]
[null,null,null,null,"",""]
[null,null,null,null,"",""]
[null,null,null,null,"",""]
[null,null,null,null,"",""]
[null,null,null,null,"",""]
[null,null,null,null,"",""]
[null,null,null,null,"",""]
[null,null,null,null,"",""]
[null,null,null,null,"",""]
[null,null,null,null,"",""]
[null,null,null,null,"",""]
[null,null,null,null,"",""]
[null,null,null,null,"",""]
[null,null,null,null,"",""]
[null,null,null,null,"",""]
[null,null,null,null,"",""]
[null,null,null,null,"",""]
[null,null,null,null,"",""]
[null,null,null,null,"",""]
[null,null,null,null,"",""]
[null,null,null,null,"",""]
[null,null,null,null,"",""]
[null,null,null,null,"",""]
[null,null,null,null,"",""]
[null,null,null,null,"",""]
[null,null,null,null,"",""]
[null,null,null,null,"",""]
[null,null,null,null,"",""]
[null,null,null,null,"",""]
[null,null,null,null,"",""]
[null,null,null,null,"",""]
[null,null,null,null,"",""]
[null,null,null,null,"",""]
[null,null,null,null,"",""]
[null,null,null,null,"",""]
[null,null,null,null,"",""]
[null,null,null,null,"",""]
[null,null,null,null,"",""]
[null,null,null,null,"",""]
[null,null,null,null,"",""]
[null,null,null,null,"",""]
[null,null,null,null,"",""]
[null,null,null,null,"",""]
[null,null,null,null,"",""]
[null,null,null,null,"",""]
[null,null,null,null,"",""]
[null,null,null,null,"",""]
[null,null,null,null,"",""]
[null,null,null,null,"",""]
[null,null,null,null,"",""]
[null,null,null,null,"",""]
[null,null,null,null,"",""]
[null,null,null,null,"",""]
[null,null,null,null,"",""]
[null,null,null,null,"",""]
[null,null,null,null,"",""]
[null,null,null,null,"",""]
[null,null,null,null,"",""]
[null,null,null,null,"",""]
[null,null,null,null,{"$f":"IF(D774>0,D774,\"\")","v":""},{"$f":"IF(D774>0,$J$1-D774,\"\")","v":""}]
[null,null,null,null,"",""]
[null,null,null,null,"",""]
[null,null,null,null,"",""]
[null,null,null,null,"",""]
[null,null,null,null,"",""]
[null,null,null,null,"",""]
[null,null,null,null,"",""]
[null,null,null,null,"",""]
[null,null,null,null,"",""]
[null,null,null,null,"",""]
[null,null,null,null,"",""]
[null,null,null,null,"",""]
[null,null,null,null,"",""]
[null,null,null,null,"",""]
[null,null,null,null,"",""]
[null,null,null,null,"",""]
[null,null,null,null,"",""]
[null,null,null,null,"",""]
[null,null,null,null,"",""]
[null,null,null,null,"",""]
[null,null,null,null,"",""]
[null,null,null,null,"",""]
[null,null,null,null,"",""]
[null,null,null,null,"",""]
[null,null,null,null,"",""]
[null,null,null,null,"",""]
[null,null,null,null,"",""]
[null,null,null,null,"",""]
[null,null,null,null,"",""]
[null,null,null,null,"",""]
[null,null,null,null,"",""]
[null,null,null,null,"",""]
[null,null,null,null,"",""]
[null,null,null,null,"",""]
[null,null,null,null,"",""]
[null,null,null,null,"",""]
[null,null,null,null,"",""]
[null,null,null,null,"",""]
[null,null,null,null,"",""]
[null,null,null,null,"",""]
[null,null,null,null,"",""]
[null,null,null,null,"",""]
[null,null,null,null,"",""]
[null,null,null,null,"",""]
[null,null,null,null,"",""]
[null,null,null,null,"",""]
[null,null,null,null,"",""]
[null,null,null,null,"",""]
[null,null,null,null,"",""]
[null,null,null,null,"",""]
[null,null,null,null,"",""]
[null,null,null,null,"",""]
[null,null,null,null,"",""]
[null,null,null,null,"",""]
[null,null,null,null,"",""]
[null,null,null,null,"",""]
[null,null,null,null,"",""]
[null,null,null,null,"",""]
[null,null,null,null,"",""]
[null,null,null,null,"",""]
[null,null,null,null,"",""]
[null,null,null,null,"",""]
[null,null,null,null,"",""]
[null,null,null,null,{"$f":"IF(D838>0,D838,\"\")","v":""},{"$f":"IF(D838>0,$J$1-D838,\"\")","v":""}]
[null,null,null,null,"",""]
[null,null,null,null,"",""]
[null,null,null,null,"",""]
[null,null,null,null,"",""]
[null,null,null,null,"",""]
[null,null,null,null,"",""]
[null,null,null,null,"",""]
[null,null,null,null,"",""]
[null,null,null,null,"",""]
[null,null,null,null,"",""]
[null,null,null,null,"",""]
[null,null,null,null,"",""]
[null,null,null,null,"",""]
[null,null,null,null,"",""]
[null,null,null,null,"",""]
[null,null,null,null,"",""]
[null,null,null,null,"",""]
[null,null,null,null,"",""]
[null,null,null,null,"",""]
[null,null,null,null,"",""]
[null,null,null,null,"",""]
[null,null,null,null,"",""]
[null,null,null,null,"",""]
[null,null,null,null,"",""]
[null,null,null,null,"",""]
[null,null,null,null,"",""]
[null,null,null,null,"",""]
[null,null,null,null,"",""]
[null,null,null,null,"",""]
[null,null,null,null,"",""]
[null,null,null,null,"",""]
[null,null,null,null,"",""]
[null,null,null,null,"",""]
[null,null,null,null,"",""]
[null,null,null,null,"",""]
[null,null,null,null,"",""]
[null,null,null,null,"",""]
[null,null,null,null,"",""]
[null,null,null,null,"",""]
[null,null,null,null,"",""]
[null,null,null,null,"",""]
[null,null,null,null,"",""]
[null,null,null,null,"",""]
[null,null,null,null,"",""]
[null,null,null,null,"",""]
[null,null,null,null,"",""]
[null,null,null,null,"",""]
[null,null,null,null,"",""]
[null,null,null,null,"",""]
[null,null,null,null,"",""]
[null,null,null,null,"",""]
[null,null,null,null,"",""]
[null,null,null,null,"",""]
[null,null,null,null,"",""]
[null,null,null,null,"",""]
[null,null,null,null,"",""]
[null,null,null,null,"",""]
[null,null,null,null,"",""]
[null,null,null,null,"",""]
[null,null,null,null,"",""]
[null,null,null,null,"",""]
[null,null,null,null,"",""]
[null,null,null,null,"",""]
[null,null,null,null,{"$f":"IF(D902>0,D902,\"\")","v":""},{"$f":"IF(D902>0,$J$1-D902,\"\")","v":""}]
[null,null,null,null,"",""]
[null,null,null,null,"",""]
[null,null,null,null,"",""]
[null,null,null,null,"",""]
[null,null,null,null,"",""]
[null,null,null,null,"",""]
[null,null,null,null,"",""]
[null,null,null,null,"",""]
[null,null,null,null,"",""]
[null,null,null,null,"",""]
[null,null,null,null,"",""]
[null,null,null,null,"",""]
[null,null,null,null,"",""]
[null,null,null,null,"",""]
[null,null,null,null,"",""]
[null,null,null,null,"",""]
[null,null,null,null,"",""]
[null,null,null,null,"",""]
[null,null,null,null,"",""]
[null,null,null,null,"",""]
[null,null,null,null,"",""]
[null,null,null,null,"",""]
[null,null,null,null,"",""]
[null,null,null,null,"",""]
[null,null,null,null,"",""]
[null,null,null,null,"",""]
[null,null,null,null,"",""]
[null,null,null,null,"",""]
[null,null,null,null,"",""]
[null,null,null,null,"",""]
[null,null,null,null,"",""]
[null,null,null,null,"",""]
[null,null,null,null,"",""]
[null,null,null,null,"",""]
[null,null,null,null,"",""]
[null,null,null,null,"",""]
[null,null,null,null,"",""]
[null,null,null,null,"",""]
[null,null,null,null,"",""]
[null,null,null,null,"",""]
[null,null,null,null,"",""]
[null,null,null,null,"",""]
[null,null,null,null,"",""]
[null,null,null,null,"",""]
[null,null,null,null,"",""]
[null,null,null,null,"",""]
[null,null,null,null,"",""]
[null,null,null,null,"",""]
[null,null,null,null,"",""]
[null,null,null,null,"",""]
[null,null,null,null,"",""]
[null,null,null,null,"",""]
[null,null,null,null,"",""]
[null,null,null,null,"",""]
[null,null,null,null,"",""]
[null,null,null,null,"",""]
[null,null,null,null,"",""]
[null,null,null,null,"",""]
[null,null,null,null,"",""]
[null,null,null,null,"",""]
[null,null,null,null,"",""]
[null,null,null,null,"",""]
[null,null,null,null,"",""]
[null,null,null,null,{"$f":"IF(D966>0,D966,\"\")","v":""},{"$f":"IF(D966>0,$J$1-D966,\"\")","v":""}]
[null,null,null,null,"",""]
[null,null,null,null,"",""]
[null,null,null,null,"",""]
[null,null,null,null,"",""]
[null,null,null,null,"",""]
[null,null,null,null,"",""]
[null,null,null,null,"",""]
[null,null,null,null,"",""]
[null,null,null,null,"",""]
[null,null,null,null,"",""]
[null,null,null,null,"",""]
[null,null,null,null,"",""]
[null,null,null,null,"",""]
[null,null,null,null,"",""]
[null,null,null,null,"",""]
[null,null,null,null,"",""]
[null,null,null,null,"",""]
[null,null,null,null,"",""]
[null,null,null,null,"",""]
[null,null,null,null,"",""]
[null,null,null,null,"",""]
[null,null,null,null,"",""]
[null,null,null,null,"",""]
[null,null,null,null,"",""]
[null,null,null,null,"",""]
[null,null,null,null,"",""]
[null,null,null,null,"",""]
[null,null,null,null,"",""]
[null,null,null,null,"",""]
[null,null,null,null,"",""]
[null,null,null,null,"",""]
[null,null,null,null,"",""]
[null,null,null,null,"",""]
[null,null,null,null,"",""]
[null,null,null,null,"",""]
[null,null,null,null,"",""]
[null,null,null,null,"",""]
[null,null,null,null,"",""]
[null,null,null,null,"",""]
[null,null,null,null,"",""]
[null,null,null,null,"",""]
[null,null,null,null,"",""]
[null,null,null,null,"",""]
[null,null,null,null,"",""]
[null,null,null,null,"",""]
[null,null,null,null,"",""]
[null,null,null,null,"",""]
[null,null,null,null,"",""]
[null,null,null,null,"",""]
[null,null,null,null,"",""]
[null,null,null,null,"",""]
[null,null,null,null,"",""]
[null,null,null,null,"",""]
[null,null,null,null,"",""]
[null,null,null,null,"",""]
[null,null,null,null,"",""]
[null,null,null,null,"",""]
[null,null,null,null,"",""]
[null,null,null,null,"",""]
[null,null,null,null,"",""]
[null,null,null,null,"",""]
[null,null,null,null,"",""]
[null,null,null,null,"",""]
[null,null,null,null,{"$f":"IF(D1030>0,D1030,\"\")","v":""},{"$f":"IF(D1030>0,$J$1-D1030,\"\")","v":""}]
[null,null,null,null,"",""]
[null,null,null,null,"",""]
[null,null,null,null,"",""]
[null,null,null,null,"",""]
[null,null,null,null,"",""]
[null,null,null,null,"",""]
[null,null,null,null,"",""]
[null,null,null,null,"",""]